[Event "Romanian-ch Youth Open U20 2024"]
[Site "Eforie Nord"]
[Date "2024.04.17"]
[Round "7.4"]
[White "Coca, Cristi-Iulian"]
[Black "Covaciu, Alexandru-Marian"]
[Result "1-0"]
[ECO "B15"]
[WhiteElo "2235"]
[BlackElo "1631"]
[Annotator "TA"]
[PlyCount "91"]
[EventDate "2024.04.10"]
[EventType "swiss"]
[EventCountry "ROU"]
[SourceTitle "playchess.com"]
[Source "ChessBase"]
[SourceQuality "1"]
[TimeControl "5400+30"]

{[%evp 15,91,31,44,39,58,24,39,7,19,16,31,29,56,55,119,50,59,6,37,-42,-22,-68,0,-7,25,26,22,16,28,25,30,3,39,43,45,58,53,60,61,70,75,44,68,0,204,210,224,214,192,158,160,161,168,172,296,242,233,250,276,253,653,613,735,648,818,780,964,964,1547,1528,29993,29990,29990,29991,29991,29992,29993,29985]} 1. e4 {[%emt 0:02:30]} c6 {[%emt 0:00:16]} 2. d4 {[%emt 0:00:16]} d5 {[%emt 0:00:08]} 3. Nc3 {[%emt 0:00:04]} dxe4 {[%emt 0:00:13]} 4. Nxe4 {[%emt 0:00:01]} Nf6 {[%emt 0:00:27]} 5. Nxf6+ {[%emt 0:00:06]} exf6 {[%emt 0:00:10]} 6. c3 {[%emt 0:00:23]} Bd6 {[%emt 0:00:08]} 7. Bd3 {[%emt 0:00:05]} O-O {[%emt 0:00:09]} 8. Qc2 {[%emt 0:00:03]} g6 {[%emt 0:06:57]} 9. Ne2 {[%emt 0:01:37]} Be6 {[%emt 0:01:53]} 10. Be3 {[%emt 0:02:05]} a5 {[%emt 0:01:57]} 11. O-O {[%emt 0:01:00] White is slightly better.} Qc7 {[%emt 0:01:22]} 12. h3 {[%emt 0:01:09]} Nd7 {[%emt 0:01:59]} 13. c4 {[%emt 0:00:36]} Rfe8 {[%emt 0:00:30]} 14. Nc3 {[%emt 0:04:04]} Nb6 {[%emt 0:10:49] [#]} (14... Rad8 $14) 15. Ne4 {[%emt 0:12:48]} (15. d5 $1 $16 {Ne4 is the strong threat.} Bc8 (15... cxd5 $2 {loses.} 16. Nb5 $18) 16. Rae1 Rxe3 17. Rxe3) 15... Be7 $14 {[%emt 0:10:20]} 16. Nd2 {[%emt 0:09:41]} ({Better is} 16. Rad1 $14) 16... f5 {[%emt 0:03:49] White must now prevent ...f4.} 17. f4 {[%emt 0:07:44]} (17. Nf3 $14) 17... Bf6 {[%emt 0:02:03][%cal Oe6c4]} 18. Rfe1 {[%emt 0:02:58]} (18. Bf2 $11) 18... a4 {[%emt 0:05:42]} (18... c5 $1 $15 19. dxc5 Nd7) 19. Nf3 $11 {[%emt 0:02:07]} a3 {[%emt 0:02:25]} 20. b3 {[%emt 0:06:13]} Nd7 {[%emt 0:05:45]} 21. Rad1 {[%emt 0:00:54][%cal Od4d5]} Rac8 {[%emt 0:03:01]} 22. Qf2 {[%emt 0:02:04]} Be7 {[%emt 0:02:03]} 23. Ne5 {[%emt 0:09:05]} Nxe5 {[%emt 0:00:41]} 24. fxe5 {[%emt 0:00:32]} Qd8 {[%emt 0:13:48]} 25. Be2 {[%emt 0:09:05][%cal Od4d5] d5! would now be deadly.} Bb4 {[%emt 0:05:56]} 26. Rf1 {[%emt 0:00:55]} Qe7 {[%emt 0:02:44]} 27. Qg3 {[%emt 0:03:19]} Qc7 {[%emt 0:04:05]} 28. Kh1 {[%emt 0:03:23]} Rcd8 {[%emt 0:01:10]} 29. Bf3 {[%emt 0:01:36]} (29. Bf4 $14) 29... Bc3 $2 {[%emt 0:03:34]} (29... f6 $1 $11 {and Black is okay.}) 30. Qh4 $18 {[%emt 0:02:53]} Bb4 {[%emt 0:04:07]} 31. c5 {[%emt 0:02:10]} f6 {[%emt 0:01:02]} 32. Qxf6 {[%emt 0:05:34]} Qf7 {[%emt 0:00:25] [#] Hoping for ...Qxf6.} 33. Qh4 {[%emt 0:01:18][%cal Od4d5] White is more active.} Bd5 {[%emt 0:00:51]} 34. Be2 {[%emt 0:00:36]} Be4 {[%emt 0:00:39]} (34... Rd7 $142 35. Rc1 b6) 35. Qxe4 {[%emt 0:00:59]} fxe4 {[%emt 0:00:08]} 36. Bc4 $1 {[%emt 0:00:04]} Qxc4 {[%emt 0:01:16]} 37. bxc4 {[%emt 0:00:03][%cal Bb3c4,Bc4d5,Bd5d6,Bd6d7][%mdl 32]} Rf8 $2 {[%emt 0:00:25]} (37... Ba5 38. Rc1 b6) 38. Rxf8+ {[%emt 0:00:18]} Kxf8 {[%emt 0:00:14][%mdl 4096] Endgame. KRB-KRB} 39. d5 {[%emt 0:00:19]} cxd5 {[%emt 0:00:20]} 40. cxd5 {[%emt 0:00:05] Threatens to win with e6.} Ke8 {[%emt 0:02:55]} 41. e6 {[%emt 0:00:11][%cal Be5e6,Be6e7][%mdl 32]} Ba5 {[%emt 0:00:22]} 42. d6 {[%emt 0:00:16] Strongly threatening Bh6.} Ra8 {[%emt 0:00:05]} 43. Bg5 {[%emt 0:00:28] White mates.} Bd8 {[%emt 0:00:06]} 44. d7+ {[%emt 0:00:37]} Kf8 {[%emt 0:00:18]} 45. Rf1+ {[%emt 0:00:04]} Kg8 {[%emt 0:00:08]} 46. e7 {[%emt 0:00:07] Weighted Error Value: White=0.18 (very precise) /Black=0.49.  Loses game:     	---       	Black=1      Mistake:       	White=5     	Black=4      Inaccurate:     	White=4     	Black=4      OK:         	White=13    	Black=6      Best:        	White=1     	---        Strong:       	White=1     	---} 1-0

[Event "Romanian-ch Youth Open U20 2024"]
[Site "Eforie Nord"]
[Date "2024.04.18"]
[Round "8.1"]
[White "Tudor, Henry Edward"]
[Black "Coca, Cristi-Iulian"]
[Result "1-0"]
[ECO "E65"]
[WhiteElo "2279"]
[BlackElo "2235"]
[Annotator "TA"]
[PlyCount "89"]
[EventDate "2024.04.10"]
[EventType "swiss"]
[EventCountry "ROU"]
[SourceTitle "playchess.com"]
[Source "ChessBase"]
[SourceQuality "1"]
[TimeControl "5400+30"]

{[%evp 18,89,44,19,38,36,52,-8,33,4,52,40,39,5,73,75,97,70,198,199,183,182,326,275,310,177,310,294,456,428,439,363,359,366,580,585,770,720,785,801,739,612,772,777,803,800,761,745,772,334,305,308,305,305,282,297,615,604,599,601,618,617,615,572,766,806,767,758,1081,1075,1298,1278,1353,1315]} 1. Nf3 {[%emt 0:00:37]} Nf6 {[%emt 0:00:11]} 2. b3 {[%emt 0:00:04]} d6 {[%emt 0:03:32]} 3. d4 {[%emt 0:10:14]} c5 {[%emt 0:03:56]} 4. g3 {[%emt 0:16:16]} Nbd7 {[%emt 0:09:15]} 5. Bg2 {[%emt 0:05:06]} g6 {[%emt 0:05:31]} 6. O-O {[%emt 0:04:43]} Bg7 {[%emt 0:00:04]} 7. Bb2 {[%emt 0:00:07]} O-O {[%emt 0:00:13]} 8. c4 {[%emt 0:00:18]} a6 {[%emt 0:03:10]} 9. Nc3 {[%emt 0:06:45]} Rb8 {[%emt 0:00:13]} 10. a4 {[%emt 0:05:16]} cxd4 {[%emt 0:03:52]} 11. Nxd4 {[%emt 0:00:21]} Nc5 {[%emt 0:00:31]} 12. Rb1 {[%emt 0:15:18]} ({Better is} 12. b4 $14 Ne6 13. Nb3) 12... Bd7 {[%emt 1:06:02] The position is equal.} 13. e4 {[%emt 0:03:28]} Qc8 {[%emt 0:00:00]} (13... e5 $11 {might be stronger.} 14. Nde2 Qc7) 14. Re1 {[%emt 0:08:18]} Bh3 {[%emt 0:00:00]} 15. Bh1 {[%emt 0:01:43]} Ne6 {[%emt 0:00:00]} (15... Re8 $11) 16. Nc2 $16 {[%emt 0:01:43]} Bg4 {[%emt 0:00:00][%cal Bh3g4,Bg4h5,Bh5g6][%mdl 32]} 17. f3 {[%emt 0:08:24]} (17. Qd2 {simplifies} Re8 18. Nd5 Nxd5 19. exd5 Bxb2 20. dxe6 Be5 21. exf7+ Kxf7 22. Ne3) 17... Qc5+ {[%emt 0:00:00] Black cannot hold the game after this.} (17... Bh3 $14) 18. Kg2 $18 {[%emt 0:01:22]} Bh5 {[%emt 0:00:00] [#]} 19. Nd5 $1 {[%emt 0:01:18][%cal Bc3d5,Bd5e7,Be7f5][%mdl 32]} g5 {[%emt 0:00:00]} (19... Nxd5 $142 20. exd5 Bxb2) 20. Nxe7+ {[%emt 0:00:30]} Kh8 {[%emt 0:00:00]} 21. Nd4 {[%emt 0:02:21] Active counter play!} (21. Nf5 $142 Nd7 22. Nxg7 (22. Nxd6 Bxb2 23. Rxb2 Ne5 $16) 22... Nxg7 23. Ba3) 21... Rbe8 {[%emt 0:00:00]} (21... Nd7 {might work better.}) 22. Nef5 {[%emt 0:01:15]} g4 {[%emt 0:00:00]} (22... Bg6 $142 23. Qd2 Bxf5) 23. f4 {[%emt 0:01:05]} Bg6 {[%emt 0:00:00]} 24. Nxe6 {[%emt 0:01:08]} fxe6 {[%emt 0:00:00]} 25. Qxd6 {[%emt 0:00:21]} (25. Nxd6 Rd8 26. e5 Ne4 $11) 25... Qa5 {[%emt 0:00:00]} (25... Qxd6 $142 26. Nxd6 Rb8) 26. Nxg7 {[%emt 0:00:52]} Rd8 {[%emt 0:01:14]} 27. Qe5 {[%emt 0:00:08]} Qd2+ {[%emt 0:00:10]} 28. Kg1 {[%emt 0:00:38]} Kxg7 {[%emt 0:00:09]} 29. Bc3 {[%emt 0:01:32]} Qd3 {[%emt 0:02:07]} 30. Rb2 {[%emt 0:00:11]} Qd7 {[%emt 0:00:50]} 31. Rd2 {[%emt 0:00:41]} Qe7 {[%emt 0:00:04]} 32. Rxd8 {[%emt 0:01:38]} Rxd8 {[%emt 0:00:07]} 33. Qxf6+ {[%emt 0:00:05]} (33. f5 $142) 33... Qxf6 {[%emt 0:00:03]} 34. Bxf6+ {[%emt 0:00:03]} Kxf6 {[%emt 0:00:04][%mdl 4096] Endgame. KRB-KRB} 35. e5+ {[%emt 0:00:04]} Ke7 {[%emt 0:00:21]} 36. Bxb7 {[%emt 0:00:50]} Rb8 $2 {[%emt 0:00:08]} (36... a5 37. c5 Rd2) 37. Bxa6 {[%emt 0:00:04] White is clearly winning.} Rxb3 {[%emt 0:00:03]} 38. Bb5 {[%emt 0:01:20]} Kd8 {[%emt 0:00:42]} 39. a5 {[%emt 0:00:40][%cal Ba4a5,Ba5a6,Ba6a7][%mdl 32]} Kc7 {[%emt 0:00:05]} 40. a6 {[%emt 0:00:04]} Kb6 {[%emt 0:00:10]} 41. Rd1 {[%emt 0:01:03]} Be4 {[%emt 0:00:05]} 42. Kf2 {[%emt 0:00:54]} h5 {[%emt 0:01:00][%cal Bh7h5,Bh5h4][%mdl 32]} 43. Rd6+ {[%emt 0:00:29]} Kc5 {[%emt 0:00:04]} 44. a7 {[%emt 0:00:23]} h4 {[%emt 0:00:59] [#]} 45. Bc6 $1 {[%emt 0:00:31][%mdl 512] Weighted Error Value: White=0.54/Black=0.96.  Mistake:       	White=2     	Black=8      Inaccurate:     	White=2     	Black=2      OK:         	White=9     	Black=4      Best:        	White=2     	Black=1      Strong:       	White=1     	---} 1-0

[Event "Romanian-ch Youth Open U20 2024"]
[Site "Eforie Nord"]
[Date "2024.04.18"]
[Round "8.2"]
[White "Mazilu, Stefan Fabian"]
[Black "Antonica, Dragos-Andrei"]
[Result "1-0"]
[ECO "B12"]
[WhiteElo "1994"]
[BlackElo "2317"]
[Annotator "TA"]
[PlyCount "153"]
[EventDate "2024.04.10"]
[EventType "swiss"]
[EventCountry "ROU"]
[SourceTitle "playchess.com"]
[Source "ChessBase"]
[SourceQuality "1"]
[TimeControl "5400+30"]

{[%evp 9,153,0,12,12,12,0,40,35,37,24,48,14,46,7,63,13,31,10,35,30,45,45,64,58,80,81,78,75,83,75,71,83,79,78,83,85,84,88,83,84,92,88,102,44,104,95,122,121,143,112,146,137,333,323,302,156,179,156,216,185,201,101,88,83,86,83,238,77,164,125,760,742,391,814,689,676,427,262,663,276,276,244,243,250,415,150,177,139,135,121,111,145,210,131,241,181,241,138,139,0,230,235,472,243,320,299,266,221,260,229,250,236,420,123,208,174,184,171,185,206,220,242,966,941,29991,29992,29993,1311,1118,925,29993,29994,29995,29996,29996,83,83,74,94,81,123,0,129,0,29996,29997]} 1. e4 {[%emt 0:01:00][%cal Be2e4,Be4e5][%mdl 32]} c6 {[%emt 0:00:19]} 2. d4 {[%emt 0:00:26]} d5 {[%emt 0:00:03]} 3. f3 {[%emt 0:00:48]} e6 {[%emt 0:00:08]} 4. Nc3 {[%emt 0:00:16]} Nf6 {[%emt 0:01:03]} 5. Be3 {[%emt 0:00:56]} Bb4 {[%emt 0:03:57]} 6. e5 {[%emt 0:06:08]} Nfd7 {[%emt 0:00:09]} 7. a3 {[%emt 0:01:12]} Be7 {[%emt 0:01:56]} 8. f4 {[%emt 0:05:50] White is slightly better.} c5 {[%emt 0:00:33]} 9. Nf3 {[%emt 0:03:21]} Nc6 {[%emt 0:10:01]} 10. Qd2 {[%emt 0:13:22]} b6 {[%emt 0:03:45]} 11. Bd3 {[%emt 0:04:07]} g6 {[%emt 0:08:38]} ({Black should try} 11... O-O $11) 12. O-O {[%emt 0:07:28]} (12. Be2 $14) 12... Bb7 {[%emt 0:04:07]} 13. b3 {[%emt 0:01:50][%cal Bb2b3,Bb3b4][%mdl 32]} cxd4 {[%emt 0:08:08]} 14. Nxd4 {[%emt 0:00:49]} Nc5 {[%emt 0:01:18]} 15. Bb5 {[%emt 0:05:40]} Rc8 {[%emt 0:00:43]} 16. b4 {[%emt 0:01:45] And now f5 would win.} Nd7 {[%emt 0:04:59]} 17. Nce2 {[%emt 0:07:10]} Ndb8 {[%emt 0:12:06]} 18. c3 {[%emt 0:03:26]} Qd7 {[%emt 0:06:12]} 19. Bd3 {[%emt 0:02:59]} Nxd4 {[%emt 0:05:22]} 20. Nxd4 {[%emt 0:01:29]} Nc6 {[%emt 0:02:26]} 21. Rae1 {[%emt 0:04:20]} Nxd4 {[%emt 0:04:30]} 22. Bxd4 {[%emt 0:00:06][%cal Of4f5]} Rg8 {[%emt 0:02:38]} 23. g4 {[%emt 0:01:50][%cal Bg2g4,Bg4f5,Bf5f6][%mdl 32]} Bc6 {[%emt 0:02:56]} 24. Qe2 {[%emt 0:01:14]} Kd8 {[%emt 0:00:40]} 25. Kh1 {[%emt 0:01:51]} Kc7 {[%emt 0:00:35]} 26. Rf3 {[%emt 0:04:01]} (26. a4 $16) 26... Rg7 {[%emt 0:04:21]} (26... Kb8 $14) 27. f5 $16 {[%emt 0:02:13]} gxf5 {[%emt 0:00:21]} 28. gxf5 {[%emt 0:00:05]} Bh4 {[%emt 0:00:55]} 29. f6 {[%emt 0:03:26]} (29. Ref1 h5 30. b5 Bb7) 29... Rg4 {[%emt 0:01:44]} 30. Rg1 {[%emt 0:00:55]} Rcg8 {[%emt 0:01:45]} (30... Re4 $16) 31. Rxg4 $18 {[%emt 0:02:19]} (31. Bxh7 Rxg1+ 32. Bxg1 Bb5 $16) 31... Rxg4 {[%emt 0:00:02]} 32. Rf1 {[%emt 0:03:04]} (32. Bxh7 Bb5 33. Bd3 Bxd3 34. Rxd3 (34. Qxd3 Qe8 $18) 34... Re4 $16) (32. b5 $1 $18 {[%cal Rb5c6]}) 32... h5 $16 {[%emt 0:04:34]} 33. Rg1 {[%emt 0:01:57]} Qe8 {[%emt 0:00:31]} (33... Qc8 $16 34. b5 (34. Rxg4 hxg4 35. Qxg4 Qh8 $16) 34... Bb7) 34. Rxg4 {[%emt 0:03:40]} hxg4 {[%emt 0:00:01]} 35. Qxg4 {[%emt 0:00:06]} ({White has to play} 35. b5 $1 $18 {[%cal Rb5c6]} Bd7 36. Qxg4) 35... Qh8 {[%emt 0:01:19]} 36. Kg2 {[%emt 0:04:35]} Qh6 {[%emt 0:01:39]} 37. b5 {[%emt 0:00:52]} Bb7 {[%emt 0:01:54]} (37... Bd7 $16) 38. a4 $2 {[%emt 0:00:59]} (38. Be2 $1 $18 {is more deadly.}) 38... Be1 {[%emt 0:00:29]} (38... Bc8 $16) 39. Be2 {[%emt 0:00:56]} Bxc3 $2 {[%emt 0:01:34][%mdl 8192]} 40. Qg7 $18 {[%emt 0:01:22]} (40. Bxc3 d4+ 41. Bf3 dxc3 42. Qc4+ Kb8 43. Bxb7 (43. Qxc3 Qg5+ 44. Kh3 Qh6+ 45. Kg3 Bxf3 $11) 43... Qd2+ 44. Kf3 Qd1+ 45. Kf2 (45. Kf4 Qc1+ 46. Kg3 Qe1+ 47. Kg2 Qd2+ 48. Kf1 Qc1+ 49. Kf2 Qd2+ 50. Qe2 Qd4+ 51. Kf1 Qf4+ 52. Ke1 Qh4+ 53. Kf1 Qf4+ 54. Bf3 c2 $11) 45... Qd2+ 46. Qe2 Qd4+ 47. Kf1 Qf4+ (47... Kxb7 48. Qg2+ Kc7 49. Qc6+ Kd8 50. Qa8+ Kc7 51. Qc6+ Kd8 52. Qa8+ Kc7 53. Qxa7+ Kc8 54. Qa8+ Kc7 55. Qc6+ Kd8 56. a5 $11) 48. Bf3 c2 49. Qxc2 Qxf3+ 50. Kg1 Qd5 $11 (50... Qe3+ 51. Qf2 $11)) 40... Qd2 {[%emt 0:01:27]} 41. Qxf7+ {[%emt 0:00:19]} Kb8 {[%emt 0:00:09]} 42. Qf8+ {[%emt 0:00:06]} Bc8 {[%emt 0:00:55] Hoping for ...Bb4.} 43. Qd6+ {[%emt 0:00:04]} Kb7 $2 {[%emt 0:00:11]} (43... Ka8) 44. Qc6+ {[%emt 0:00:05]} (44. Bxc3 $142 Qxe2+ 45. Kg3) 44... Kb8 {[%emt 0:00:01]} 45. Qxc3 {[%emt 0:00:23]} Qxe2+ {[%emt 0:00:02][%mdl 4096] Endgame. KQB-KQB} 46. Kg3 {[%emt 0:00:11] Intending f7 and mate.} Qe4 $2 {[%emt 0:00:15]} (46... Qh5 47. Qf3 Qg6+ 48. Qg4 Qh7) 47. Qe3 $2 {[%emt 0:00:30] Active counter play!} (47. a5 $18 Qg6+ 48. Kf2) 47... Qg6+ $16 {[%emt 0:00:08]} 48. Kf2 {[%emt 0:00:21] Strongly threatening Qf4.} Bd7 {[%emt 0:00:35]} 49. h4 {[%emt 0:02:27]} Be8 {[%emt 0:00:26]} 50. Qf4 {[%emt 0:00:30] Prevents Qg4} Qc2+ {[%emt 0:00:52]} (50... Kb7 $16 51. Kf3 Kc8) 51. Kg3 $18 {[%emt 0:00:07]} Bf7 {[%emt 0:00:32]} (51... Qxa4 $16 {keeps fighting.} 52. Bf2 (52. f7 Bxf7 53. Qxf7 Qxd4 $16) 52... Qc2 (52... Qxf4+ $2 53. Kxf4 a5 54. bxa6 $18)) 52. Be3 $36 {[%emt 0:00:18][%mdl 2048] aiming for Qh6. Keeping Black busy.} Qd1 {[%emt 0:00:49]} (52... Qb2 {might work better.} 53. h5 Bxh5) 53. Qb4 {[%emt 0:00:29]} (53. Bf2 $18) 53... Bh5 $16 {[%emt 0:01:03]} 54. Qf4 {[%emt 0:00:46] Against Qf3+} (54. Qd4 $1 $16 {[%cal Rd4d1]} Qf3+ 55. Kh2) 54... Bf7 $1 $18 {[%emt 0:00:43]} 55. Bf2 {[%emt 0:00:56]} Qd3+ $2 {[%emt 0:00:18]} (55... Kc8 {was necessary.} 56. Kg2 Qh5) 56. Kg2 {[%emt 0:00:16]} (56. Qe3 $142 Qg6+ 57. Kh2) 56... Qg6+ {[%emt 0:00:52]} 57. Kh2 {[%emt 0:00:23]} Qc2 {[%emt 0:00:46]} 58. Qd4 {[%emt 0:00:20][%cal Oa4a5]} Qa2 {[%emt 0:00:31]} 59. Kg3 {[%emt 0:00:10] Qb4 would now be deadly.} Bh5 {[%emt 0:00:18]} 60. Qf4 {[%emt 0:00:35]} Qb3+ $2 {[%emt 0:00:20]} (60... Kc8 61. Kh2 (61. f7 Qa3+ 62. Qe3 Qe7 $14) 61... Bf7) 61. Be3 $2 {[%emt 0:00:24]} (61. Kh2 $18 {and the rest is easy. f7 would kill now.} Qa3 62. a5) 61... Bf7 {[%emt 0:00:25]} (61... Kc8 $16 {is a better defense.} 62. Kh2 Qc2+ 63. Bf2 Bf7) 62. Qd4 {[%emt 0:00:28]} Qa3 {[%emt 0:00:52]} 63. Kf4 {[%emt 0:00:35]} Qa2 {[%emt 0:00:20]} 64. Bf2 $1 {[%emt 0:00:12]} Qc2 {[%emt 0:00:43]} 65. a5 {[%emt 0:00:23]} Qf5+ $2 {[%emt 0:00:31]} (65... Bh5 66. Kg3 (66. axb6 Qg6 $11) 66... Qg6+ 67. Kh2 Bf3) 66. Kg3 {[%emt 0:00:04]} Kc8 {[%emt 0:00:32]} 67. axb6 {[%emt 0:00:12]} axb6 {[%emt 0:00:02]} 68. Qxb6 {[%emt 0:00:28]} (68. Qc3+ $142 Kb8 69. Bxb6 Qd3+ 70. Qxd3 Kb7 71. Qd4 Bh5 72. Qc5 Bg6 73. Qc7+ Ka8 74. Qc8#) 68... Qxe5+ {[%emt 0:00:10]} 69. Kg2 {[%emt 0:00:13] White wants to mate with Qa6+.} Qxf6 {[%emt 0:01:19]} 70. Qc6+ {[%emt 0:00:26]} Kd8 {[%emt 0:00:08]} 71. Bb6+ {[%emt 0:00:14]} Ke7 {[%emt 0:00:00] [#]} 72. Bc5+ $2 {[%emt 0:00:05]} (72. Qc5+ $1 {mates} Kd7 73. Qc7+ Ke8 74. Qc8+ Ke7 75. Qd8#) 72... Kd8 $16 {[%emt 0:00:04]} 73. Qa8+ {[%emt 0:00:38]} Kd7 {[%emt 0:00:18]} 74. Qb7+ {[%emt 0:00:14]} Ke8 {[%emt 0:00:08]} 75. Qc6+ {[%emt 0:01:46]} Kd8 {[%emt 0:00:02]} 76. Bb6+ $2 {[%emt 0:00:10][%mdl 8192]} (76. Qd6+ $16 Kc8 77. Qc6+ Kd8) 76... Ke7 {[%emt 0:00:11][%cal Of6f4] [#]} 77. Qc5+ $1 {[%emt 0:00:04] Weighted Error Value: White=0.46/Black=0.51.  Loses game:     	---       	Black=3      Missed win:     	White=3     	---        Mistake:       	White=9     	Black=13     Inaccurate:     	White=2     	Black=5      OK:         	White=16    	Black=12     Best:        	White=4     	Black=8      Strong:       	White=2     	Black=1} 1-0

[Event "Romanian-ch Youth Open U20 2024"]
[Site "Eforie Nord"]
[Date "2024.04.18"]
[Round "8.3"]
[White "Serban, Cristian-Stefan"]
[Black "Prisacaru, Stefan-Emilian"]
[Result "1-0"]
[ECO "E05"]
[WhiteElo "2282"]
[BlackElo "2286"]
[Annotator "TA"]
[PlyCount "87"]
[EventDate "2024.04.10"]
[EventType "swiss"]
[EventCountry "ROU"]
[SourceTitle "playchess.com"]
[Source "ChessBase"]
[SourceQuality "1"]
[TimeControl "5400+30"]

{[%evp 13,87,15,15,16,0,10,18,14,17,6,56,51,41,22,16,19,29,21,29,13,19,20,30,0,17,23,16,21,18,0,0,0,0,0,53,40,389,452,457,494,465,467,459,418,417,393,477,462,467,460,584,725,716,711,674,677,1014,987,1045,1034,1402,1397,5277,4697,1882,1474,1220,1054,1772,4428,5244,4426,29976,29977,29977,29978]} 1. d4 {[%emt 0:03:08]} d5 {[%emt 0:00:03]} 2. c4 {[%emt 0:00:05]} e6 {[%emt 0:00:04]} 3. Nf3 {[%emt 0:00:07]} Nf6 {[%emt 0:00:07]} 4. g3 {[%emt 0:00:09]} Be7 {[%emt 0:00:20]} 5. Bg2 {[%emt 0:00:07]} O-O {[%emt 0:00:06]} 6. O-O {[%emt 0:00:05]} dxc4 {[%emt 0:00:08]} 7. Qc2 {[%emt 0:00:05]} b5 {[%emt 0:00:29]} 8. a4 {[%emt 0:00:07]} b4 {[%emt 0:00:08]} 9. Nfd2 {[%emt 0:00:06]} Nd5 {[%emt 0:00:18]} 10. Nxc4 {[%emt 0:00:10] The position is equal.} (10. Qxc4 Ba6 11. Qc2 c5 (11... Bxe2 12. Re1 $17) 12. dxc5 Nd7 $17) 10... c5 {[%emt 0:00:17]} 11. dxc5 {[%emt 0:00:07]} Bxc5 {[%emt 0:00:05]} (11... Ba6 $11) 12. e4 $1 $14 {[%emt 0:04:19]} Nb6 {[%emt 0:00:07]} 13. Rd1 {[%emt 0:00:23]} N8d7 $1 {[%emt 0:00:38]} 14. Nxb6 {[%emt 0:01:37]} axb6 {[%emt 0:00:10]} 15. Nd2 {[%emt 0:03:29][%cal Bb1d2,Bd2b3,Bb3d4][%mdl 32]} Ba6 {[%emt 0:00:35]} 16. Nb3 {[%emt 0:05:02]} Be7 {[%emt 0:00:40]} 17. Be3 {[%emt 0:13:13] And now Rd2 would win.} Rc8 {[%emt 0:01:02]} 18. Qb1 {[%emt 0:00:53]} Bc4 {[%emt 0:11:18]} 19. Nd4 {[%emt 0:04:13]} Bc5 {[%emt 0:05:24]} 20. b3 {[%emt 0:10:20]} Ba6 {[%emt 0:02:17]} 21. Ra2 {[%emt 0:00:05][%cal Oe4e5,Ba1a2,Ba2d2,Bd2d7][%mdl 32]} Qe7 {[%emt 0:04:13]} 22. Rad2 {[%emt 0:01:46]} Ne5 {[%emt 0:18:04] Prevents Nc6} 23. h3 {[%emt 0:01:13] Repels Ng4} Qa7 {[%emt 0:07:23]} ({Better is} 23... h5 $11) 24. Qa1 {[%emt 0:04:25][%cal Od4e6] Black must now prevent Nxe6!} Nc6 $2 {[%emt 0:15:25][%mdl 8192] [#] Black cannot hold the game after this.} (24... Qe7 $14) 25. Nxe6 $1 $18 {[%emt 0:02:29][%mdl 512]} fxe6 {[%emt 0:03:43]} 26. Rd7 {[%emt 0:00:10][%csl Gd7][%cal Ra1g7]} Rf7 {[%emt 0:02:06]} 27. Rxa7 {[%emt 0:00:12]} Rxa7 {[%emt 0:00:03]} 28. Rc1 {[%emt 0:04:00]} Bxe3 {[%emt 0:02:59]} 29. fxe3 {[%emt 0:00:06]} Rac7 {[%emt 0:00:07]} 30. Bf1 {[%emt 0:02:19]} Bxf1 {[%emt 0:01:44]} 31. Kxf1 {[%emt 0:00:05]} ({Less strong is} 31. Rxf1 h6 32. Qd1 Rd8 $18) 31... Na5 {[%emt 0:03:51]} 32. Rxc7 {[%emt 0:00:07]} Rxc7 {[%emt 0:00:01][%mdl 4096] Endgame. KQ-KRN} 33. Qd4 {[%emt 0:02:11] [#] Threatening mate with Qd8+.} Rc1+ {[%emt 0:04:07]} 34. Ke2 {[%emt 0:00:11]} Nxb3 {[%emt 0:00:35]} 35. Qxb4 {[%emt 0:00:06]} Rb1 {[%emt 0:00:14]} 36. Qe7 {[%emt 0:00:58][%cal Re7e8]} (36. Qxb6 $2 {perishes.} Nc1+ 37. Kd2 Rxb6 $19) 36... Rb2+ {[%emt 0:00:23]} 37. Kf3 {[%emt 0:00:08][%cal Re7e8]} h6 {[%emt 0:01:55]} 38. Qxe6+ {[%emt 0:00:13]} Kh7 {[%emt 0:00:05]} 39. Qf5+ {[%emt 0:00:31]} (39. Qxb6 $2 {loses.} Nd2+ 40. Ke2 Rxb6 $19) 39... Kg8 {[%emt 0:00:15]} 40. Qc8+ {[%emt 0:01:02]} Kh7 {[%emt 0:00:10]} 41. Qc3 {[%emt 0:01:00]} Nd2+ {[%emt 0:00:55]} 42. Ke2 {[%emt 0:01:46]} Ra2 {[%emt 0:00:57]} 43. Qxd2 {[%emt 0:00:06]} Rxd2+ {[%emt 0:00:05]} 44. Kxd2 {[%emt 0:00:02] Weighted Error Value: White=0.06 (flawless) /Black=0.56.  Loses game:     	---       	Black=1      Mistake:       	---       	Black=2      Inaccurate:     	White=1     	---        OK:         	White=14    	Black=12     Best:        	---       	Black=1      Strong:       	White=1     	Black=1      Brilliant:      	White=1     	---} 1-0